[Event "*** SCC Grand Prix: Titled Tuesday Blitz"]
[Site "Chess.com"]
[Date "2020.08.25"]
[Round "7"]
[White "carlsen1001"]
[Black "Ausbildung"]
[Result "1/2-1/2"]
[WhiteElo "2396"]
[BlackElo "2254"]
[TimeControl "180+1"]
[EndTime "11:18:19 PDT"]
[Termination "Game drawn by repetition"]

1. e4 {[%clk 0:03:00.9]} 1... e5 {[%clk 0:02:58.2]} 2. Nf3 {[%clk 0:03:00.8]}
2... Nc6 {[%clk 0:02:57.2]} 3. Bb5 {[%clk 0:03:01.2]} 3... Nf6 {[%clk 0:02:54]}
4. O-O {[%clk 0:03:00.7]} 4... d6 {[%clk 0:02:52.5]} 5. Re1 {[%clk 0:02:59.3]}
5... Be7 {[%clk 0:02:50]} 6. c3 {[%clk 0:02:59.5]} 6... O-O {[%clk 0:02:46.7]}
7. h3 {[%clk 0:03:00.1]} 7... Nb8 {[%clk 0:02:43]} 8. d4 {[%clk 0:02:59.7]} 8...
c6 {[%clk 0:02:39.5]} 9. Ba4 {[%clk 0:02:58.6]} 9... Nbd7 {[%clk 0:02:38.5]} 10.
Nbd2 {[%clk 0:02:58.3]} 10... Kh8 {[%clk 0:02:36.7]} 11. Nf1 {[%clk 0:02:58.4]}
11... Rg8 {[%clk 0:02:36]} 12. Ng3 {[%clk 0:02:57.8]} 12... Qc7 {[%clk
0:02:29.9]} 13. Bb3 {[%clk 0:02:57.5]} 13... Rf8 {[%clk 0:02:26.4]} 14. Nf5
{[%clk 0:02:57]} 14... Bd8 {[%clk 0:02:21.5]} 15. Ng5 {[%clk 0:02:55.6]} 15...
Nb6 {[%clk 0:02:14.4]} 16. dxe5 {[%clk 0:02:54.3]} 16... dxe5 {[%clk 0:02:12.5]}
17. Nxf7+ {[%clk 0:02:51.9]} 17... Rxf7 {[%clk 0:01:58.6]} 18. Bxf7 {[%clk
0:02:50.1]} 18... Bxf5 {[%clk 0:01:56.8]} 19. exf5 {[%clk 0:02:48.5]} 19... Qxf7
{[%clk 0:01:56.3]} 20. Rxe5 {[%clk 0:02:49.2]} 20... Bc7 {[%clk 0:01:54.1]} 21.
Re6 {[%clk 0:02:49.2]} 21... Rd8 {[%clk 0:01:52.6]} 22. Qe2 {[%clk 0:02:49.2]}
22... Nbd5 {[%clk 0:01:49.9]} 23. Bg5 {[%clk 0:02:48.4]} 23... h6 {[%clk
0:01:41.1]} 24. Bxf6 {[%clk 0:02:48]} 24... Nxf6 {[%clk 0:01:40.4]} 25. Re1
{[%clk 0:02:45.2]} 25... Bd6 {[%clk 0:01:31.8]} 26. c4 {[%clk 0:02:39.8]} 26...
Kh7 {[%clk 0:01:28.5]} 27. Qf3 {[%clk 0:02:20]} 27... Nh5 {[%clk 0:01:15.9]} 28.
Rg6 {[%clk 0:02:11.1]} 28... Nf4 {[%clk 0:01:12.8]} 29. Rxd6 {[%clk 0:02:11.1]}
29... Nxh3+ {[%clk 0:01:05.1]} 30. Qxh3 {[%clk 0:02:11.2]} 30... Rxd6 {[%clk
0:01:04.5]} 31. b3 {[%clk 0:02:10.5]} 31... Rd2 {[%clk 0:01:00.8]} 32. Qe3
{[%clk 0:01:49.6]} 32... Rxa2 {[%clk 0:00:49.6]} 33. Qe6 {[%clk 0:01:50.1]}
33... Kg8 {[%clk 0:00:44.3]} 34. Qc8+ {[%clk 0:01:49.1]} 34... Kh7 {[%clk
0:00:42.7]} 35. Re8 {[%clk 0:01:47.6]} 35... Ra1+ {[%clk 0:00:40.3]} 36. Kh2
{[%clk 0:01:47.2]} 36... Qh5+ {[%clk 0:00:40.5]} 37. Kg3 {[%clk 0:01:47.1]}
37... Qg5+ {[%clk 0:00:38.9]} 38. Kf3 {[%clk 0:01:45.3]} 38... Qh5+ {[%clk
0:00:36.7]} 39. Kg3 {[%clk 0:01:29.3]} 39... Qg5+ {[%clk 0:00:34.8]} 40. Kf3
{[%clk 0:01:29.5]} 40... Qh5+ {[%clk 0:00:33.5]} 41. Kg3 {[%clk 0:01:29.8]}
1/2-1/2

[Event "*** SCC Grand Prix: Titled Tuesday Blitz"]
[Site "Chess.com"]
[Date "2020.08.25"]
[Round "7"]
[White "Annagozel"]
[Black "IngOscarArdila"]
[Result "0-1"]
[WhiteElo "1851"]
[BlackElo "2193"]
[TimeControl "180+1"]
[EndTime "11:18:27 PDT"]
[Termination "IngOscarArdila won on time"]

1. e4 {[%clk 0:03:00.9]} 1... e5 {[%clk 0:02:59.5]} 2. Nf3 {[%clk 0:02:59.8]}
2... Nf6 {[%clk 0:02:58.3]} 3. Nxe5 {[%clk 0:02:58.8]} 3... d6 {[%clk
0:02:58.5]} 4. Nf3 {[%clk 0:02:58.6]} 4... Nxe4 {[%clk 0:02:59]} 5. Qe2 {[%clk
0:02:59]} 5... Qe7 {[%clk 0:02:58.5]} 6. d3 {[%clk 0:02:59.4]} 6... Nf6 {[%clk
0:02:58.8]} 7. Bg5 {[%clk 0:02:59.3]} 7... Qxe2+ {[%clk 0:02:57.7]} 8. Bxe2
{[%clk 0:02:58.6]} 8... Be7 {[%clk 0:02:58.3]} 9. Nc3 {[%clk 0:02:56.2]} 9... c6
{[%clk 0:02:58]} 10. O-O-O {[%clk 0:02:53.5]} 10... Nbd7 {[%clk 0:02:57.6]} 11.
d4 {[%clk 0:02:45.3]} 11... h6 {[%clk 0:02:57.2]} 12. Bf4 {[%clk 0:02:28.7]}
12... O-O {[%clk 0:02:56.4]} 13. h3 {[%clk 0:02:26.6]} 13... Re8 {[%clk
0:02:55.6]} 14. Bd3 {[%clk 0:02:23.9]} 14... Nf8 {[%clk 0:02:53.7]} 15. g4
{[%clk 0:02:18.5]} 15... Ne6 {[%clk 0:02:53.3]} 16. Bg3 {[%clk 0:02:09.4]} 16...
Bd7 {[%clk 0:02:52.9]} 17. Nh4 {[%clk 0:02:01.7]} 17... Nxd4 {[%clk 0:02:40.8]}
18. Nf5 {[%clk 0:01:43.3]} 18... Nxf5 {[%clk 0:02:38.9]} 19. Bxf5 {[%clk
0:01:41.3]} 19... Bxf5 {[%clk 0:02:38.6]} 20. gxf5 {[%clk 0:01:41.1]} 20... d5
{[%clk 0:02:36.1]} 21. Bf4 {[%clk 0:01:35.3]} 21... Kf8 {[%clk 0:02:33.3]} 22.
Rhg1 {[%clk 0:01:32.2]} 22... Bc5 {[%clk 0:02:29.2]} 23. Rg2 {[%clk 0:01:31.2]}
23... Ne4 {[%clk 0:02:18.7]} 24. Nxe4 {[%clk 0:01:13.5]} 24... Rxe4 {[%clk
0:02:18.2]} 25. Bd2 {[%clk 0:01:09.4]} 25... Rae8 {[%clk 0:02:14.7]} 26. Rdg1
{[%clk 0:01:06.7]} 26... Bd4 {[%clk 0:02:14.5]} 27. c3 {[%clk 0:01:02]} 27...
Bf6 {[%clk 0:02:13.9]} 28. Be3 {[%clk 0:00:48.3]} 28... R8e5 {[%clk 0:02:11.7]}
29. Bxa7 {[%clk 0:00:43.8]} 29... Rxf5 {[%clk 0:02:08.5]} 30. Be3 {[%clk
0:00:30.8]} 30... Ke8 {[%clk 0:02:02.6]} 31. Kc2 {[%clk 0:00:29]} 31... Kd7
{[%clk 0:02:01.3]} 32. Kd3 {[%clk 0:00:25.4]} 32... Rf3 {[%clk 0:02:01.3]} 33.
Ke2 {[%clk 0:00:23.2]} 33... Rxh3 {[%clk 0:02:00.4]} 34. Rg4 {[%clk 0:00:20.5]}
34... Rxg4 {[%clk 0:01:58.1]} 35. Rxg4 {[%clk 0:00:19.8]} 35... Rh5 {[%clk
0:01:55.7]} 36. Rb4 {[%clk 0:00:08.8]} 36... b5 {[%clk 0:01:55.1]} 37. a4 {[%clk
0:00:06.3]} 37... Be7 {[%clk 0:01:54.6]} 0-1

[Event "*** SCC Grand Prix: Titled Tuesday Blitz"]
[Site "Chess.com"]
[Date "2020.08.25"]
[Round "7"]
[White "Oglob71"]
[Black "anon102030"]
[Result "0-1"]
[WhiteElo "2560"]
[BlackElo "2741"]
[TimeControl "180+1"]
[EndTime "11:18:35 PDT"]
[Termination "anon102030 won on time"]

1. d4 {[%clk 0:03:00.9]} 1... Nf6 {[%clk 0:02:59.6]} 2. Nf3 {[%clk 0:02:59.9]}
2... d6 {[%clk 0:02:57.6]} 3. c4 {[%clk 0:02:59.8]} 3... g6 {[%clk 0:02:57.5]}
4. Nc3 {[%clk 0:02:59.8]} 4... Bg7 {[%clk 0:02:57.7]} 5. Bg5 {[%clk 0:03:00.4]}
5... Nbd7 {[%clk 0:02:55.7]} 6. e3 {[%clk 0:03:00.7]} 6... h6 {[%clk 0:02:55.2]}
7. Bh4 {[%clk 0:03:00.5]} 7... g5 {[%clk 0:02:52.9]} 8. Bg3 {[%clk 0:02:46.1]}
8... Nh5 {[%clk 0:02:49.3]} 9. Bd3 {[%clk 0:02:45.5]} 9... Nxg3 {[%clk 0:02:44]}
10. hxg3 {[%clk 0:02:45.1]} 10... e5 {[%clk 0:02:44.5]} 11. Bf5 {[%clk
0:02:42.6]} 11... exd4 {[%clk 0:02:35.6]} 12. Nxd4 {[%clk 0:02:38.9]} 12... Ne5
{[%clk 0:02:32.3]} 13. Qe2 {[%clk 0:02:33]} 13... Nc6 {[%clk 0:02:20.6]} 14.
Bxc8 {[%clk 0:02:28.9]} 14... Qxc8 {[%clk 0:02:21.5]} 15. O-O-O {[%clk
0:02:27.2]} 15... Qd7 {[%clk 0:02:16.8]} 16. Nd5 {[%clk 0:02:13.3]} 16... a6
{[%clk 0:02:01.7]} 17. g4 {[%clk 0:02:00.1]} 17... O-O-O {[%clk 0:01:27.8]} 18.
Nf5 {[%clk 0:01:59]} 18... Rdg8 {[%clk 0:01:15.2]} 19. Rh5 {[%clk 0:01:15]}
19... Qe6 {[%clk 0:01:09.8]} 20. Rdh1 {[%clk 0:01:13.1]} 20... Bf8 {[%clk
0:01:09.5]} 21. g3 {[%clk 0:01:07.3]} 21... Ne5 {[%clk 0:01:03.2]} 0-1

[Event "*** SCC Grand Prix: Titled Tuesday Blitz"]
[Site "Chess.com"]
[Date "2020.08.25"]
[Round "7"]
[White "BogdanDeac"]
[Black "Haykoooo0o"]
[Result "1-0"]
[WhiteElo "2825"]
[BlackElo "2520"]
[TimeControl "180+1"]
[EndTime "11:18:37 PDT"]
[Termination "BogdanDeac won by checkmate"]

1. Nf3 {[%clk 0:03:00.9]} 1... d5 {[%clk 0:02:57.7]} 2. d4 {[%clk 0:03:00.8]}
2... Nf6 {[%clk 0:02:55.7]} 3. c4 {[%clk 0:03:01]} 3... c6 {[%clk 0:02:53.2]} 4.
g3 {[%clk 0:03:01.1]} 4... Bf5 {[%clk 0:02:52.8]} 5. Nc3 {[%clk 0:03:00.5]} 5...
e6 {[%clk 0:02:53.1]} 6. Nh4 {[%clk 0:03:00.4]} 6... Bg4 {[%clk 0:02:45.1]} 7.
Qb3 {[%clk 0:02:58.9]} 7... Qb6 {[%clk 0:02:44.1]} 8. h3 {[%clk 0:02:57.4]} 8...
Bh5 {[%clk 0:02:38.8]} 9. g4 {[%clk 0:02:57.5]} 9... Bg6 {[%clk 0:02:37.5]} 10.
Nxg6 {[%clk 0:02:58]} 10... hxg6 {[%clk 0:02:38.4]} 11. Bg2 {[%clk 0:02:58.7]}
11... Qxb3 {[%clk 0:02:32.2]} 12. axb3 {[%clk 0:02:57.4]} 12... Nbd7 {[%clk
0:02:32.2]} 13. g5 {[%clk 0:02:56.9]} 13... Ng8 {[%clk 0:02:28.4]} 14. e4 {[%clk
0:02:52.9]} 14... dxe4 {[%clk 0:01:54.2]} 15. Nxe4 {[%clk 0:02:53.8]} 15... Bb4+
{[%clk 0:01:51.7]} 16. Bd2 {[%clk 0:02:53.2]} 16... Bxd2+ {[%clk 0:01:51.7]} 17.
Kxd2 {[%clk 0:02:54.1]} 17... Ke7 {[%clk 0:01:45.5]} 18. c5 {[%clk 0:02:51.7]}
18... Rh4 {[%clk 0:01:30.6]} 19. Ke3 {[%clk 0:02:51]} 19... e5 {[%clk
0:01:23.2]} 20. Rhd1 {[%clk 0:02:47.6]} 20... f5 {[%clk 0:01:11]} 21. Nd6 {[%clk
0:02:41.9]} 21... f4+ {[%clk 0:00:48.5]} 22. Ke2 {[%clk 0:02:25.8]} 22... exd4
{[%clk 0:00:45.5]} 23. Nxb7 {[%clk 0:02:25.9]} 23... Ne5 {[%clk 0:00:36.8]} 24.
Ra4 {[%clk 0:02:22.9]} 24... Rb8 {[%clk 0:00:21.3]} 25. Rxa7 {[%clk 0:01:46.2]}
25... f3+ {[%clk 0:00:18.4]} 26. Bxf3 {[%clk 0:01:46.1]} 26... d3+ {[%clk
0:00:18.2]} 27. Ke3 {[%clk 0:01:45.5]} 27... Rxh3 {[%clk 0:00:17.7]} 28. Kf4
{[%clk 0:01:44.7]} 28... Ke6 {[%clk 0:00:12]} 29. Bg4+ {[%clk 0:01:38.7]} 29...
Nxg4 {[%clk 0:00:09.8]} 30. Kxg4 {[%clk 0:01:39.6]} 30... Rh5 {[%clk 0:00:07.5]}
31. Rxd3 {[%clk 0:01:38.9]} 31... Ne7 {[%clk 0:00:07.5]} 32. Re3+ {[%clk
0:01:34.5]} 32... Kd5 {[%clk 0:00:06.7]} 33. Rxe7 {[%clk 0:01:34.6]} 33... Rf8
{[%clk 0:00:06.1]} 34. Rd7+ {[%clk 0:01:33.2]} 34... Ke6 {[%clk 0:00:05.2]} 35.
Nd8+ {[%clk 0:01:32.4]} 35... Ke5 {[%clk 0:00:04]} 36. Nxc6+ {[%clk 0:01:31.3]}
36... Ke4 {[%clk 0:00:03.3]} 37. Rd4# {[%clk 0:01:31.1]} 1-0

[Event "*** SCC Grand Prix: Titled Tuesday Blitz"]
[Site "Chess.com"]
[Date "2020.08.25"]
[Round "7"]
[White "The_Chess_Coach"]
[Black "Balla_Tamas"]
[Result "0-1"]
[WhiteElo "2215"]
[BlackElo "2457"]
[TimeControl "180+1"]
[EndTime "11:18:37 PDT"]
[Termination "Balla_Tamas won by resignation"]

1. d4 {[%clk 0:03:00.9]} 1... Nf6 {[%clk 0:02:59]} 2. c4 {[%clk 0:03:00.7]} 2...
e6 {[%clk 0:02:58.8]} 3. Nc3 {[%clk 0:03:01]} 3... Bb4 {[%clk 0:02:58.1]} 4. e3
{[%clk 0:03:01.4]} 4... O-O {[%clk 0:02:56.8]} 5. Bd3 {[%clk 0:03:01.2]} 5... d5
{[%clk 0:02:56.5]} 6. Nf3 {[%clk 0:03:01.3]} 6... c5 {[%clk 0:02:55.8]} 7. O-O
{[%clk 0:03:00.3]} 7... cxd4 {[%clk 0:02:55.9]} 8. exd4 {[%clk 0:02:59.5]} 8...
dxc4 {[%clk 0:02:55.7]} 9. Bxc4 {[%clk 0:03:00.4]} 9... b6 {[%clk 0:02:54.9]}
10. Bg5 {[%clk 0:02:53.7]} 10... Bb7 {[%clk 0:02:54.6]} 11. Qe2 {[%clk
0:02:46.2]} 11... h6 {[%clk 0:02:49.7]} 12. Be3 {[%clk 0:02:25.3]} 12... Nd5
{[%clk 0:02:43.4]} 13. Nxd5 {[%clk 0:02:21.6]} 13... Bxd5 {[%clk 0:02:42.9]} 14.
Bxd5 {[%clk 0:02:21.5]} 14... Qxd5 {[%clk 0:02:42.2]} 15. Rfd1 {[%clk
0:02:17.6]} 15... Nd7 {[%clk 0:02:36.8]} 16. a3 {[%clk 0:02:13.3]} 16... Bd6
{[%clk 0:02:33.8]} 17. Ne5 {[%clk 0:01:48]} 17... Nf6 {[%clk 0:02:32]} 18. Bf4
{[%clk 0:01:40.5]} 18... Rac8 {[%clk 0:02:30.3]} 19. Rd3 {[%clk 0:01:26.6]}
19... Qe4 {[%clk 0:02:13.4]} 20. Qd2 {[%clk 0:00:55.2]} 20... Nd5 {[%clk
0:02:11.5]} 21. Bxh6 {[%clk 0:00:54.8]} 21... Bxe5 {[%clk 0:02:01.5]} 22. Re1
{[%clk 0:00:26.7]} 22... Qg6 {[%clk 0:01:36.5]} 23. Rh3 {[%clk 0:00:19]} 23...
Rc2 {[%clk 0:01:30.3]} 24. Qd1 {[%clk 0:00:18.5]} 24... Bf6 {[%clk 0:01:15.6]}
25. Be3 {[%clk 0:00:16.2]} 25... Nxe3 {[%clk 0:01:12]} 26. Rhxe3 {[%clk
0:00:14.3]} 26... Rfc8 {[%clk 0:01:11.8]} 27. Rg3 {[%clk 0:00:13.7]} 27... Qf5
{[%clk 0:01:09.6]} 28. Rh3 {[%clk 0:00:09.8]} 28... Qxf2+ {[%clk 0:01:08.4]} 0-1

[Event "*** SCC Grand Prix: Titled Tuesday Blitz"]
[Site "Chess.com"]
[Date "2020.08.25"]
[Round "7"]
[White "GelmanAlexander"]
[Black "MarcoRiehle"]
[Result "0-1"]
[WhiteElo "2556"]
[BlackElo "2738"]
[TimeControl "180+1"]
[EndTime "11:18:38 PDT"]
[Termination "MarcoRiehle won by resignation"]

1. d4 {[%clk 0:03:00.9]} 1... d5 {[%clk 0:02:59.6]} 2. Nc3 {[%clk 0:03:00.6]}
2... Bf5 {[%clk 0:02:52.3]} 3. f3 {[%clk 0:02:56.5]} 3... e6 {[%clk 0:02:51.3]}
4. e4 {[%clk 0:02:56]} 4... Bg6 {[%clk 0:02:51.9]} 5. h4 {[%clk 0:02:55.7]} 5...
h5 {[%clk 0:02:48.6]} 6. Bd3 {[%clk 0:02:46.2]} 6... Nc6 {[%clk 0:02:41.1]} 7.
Nge2 {[%clk 0:02:45.8]} 7... Be7 {[%clk 0:02:33.4]} 8. g3 {[%clk 0:02:26.3]}
8... Qd7 {[%clk 0:02:32.4]} 9. Be3 {[%clk 0:02:23.8]} 9... O-O-O {[%clk
0:02:29]} 10. exd5 {[%clk 0:02:10.5]} 10... exd5 {[%clk 0:02:20.5]} 11. Bxg6
{[%clk 0:02:10.4]} 11... fxg6 {[%clk 0:02:21.4]} 12. Qd3 {[%clk 0:02:07]} 12...
Nb4 {[%clk 0:01:57]} 13. Qxg6 {[%clk 0:01:39.6]} 13... Qd6 {[%clk 0:01:50.8]}
14. Qxd6 {[%clk 0:01:32.6]} 14... Bxd6 {[%clk 0:01:51.7]} 15. Kd2 {[%clk
0:01:29.9]} 15... Ne7 {[%clk 0:01:50.9]} 16. Bf4 {[%clk 0:01:05.7]} 16... Nf5
{[%clk 0:01:45]} 17. Bxd6 {[%clk 0:01:02.8]} 17... Rxd6 {[%clk 0:01:45.9]} 18.
Rag1 {[%clk 0:01:00]} 18... Nc6 {[%clk 0:01:43.5]} 19. g4 {[%clk 0:00:54.3]}
19... Nfxd4 {[%clk 0:01:40.3]} 20. Nxd4 {[%clk 0:00:52.7]} 20... Nxd4 {[%clk
0:01:41.2]} 21. Rg3 {[%clk 0:00:51.5]} 21... Rf8 {[%clk 0:01:37.6]} 22. Rhh3
{[%clk 0:00:45.6]} 22... Rdf6 {[%clk 0:01:25.3]} 23. gxh5 {[%clk 0:00:38.1]}
23... Nxf3+ {[%clk 0:01:24.3]} 24. Kd3 {[%clk 0:00:31.9]} 24... c6 {[%clk
0:01:20.9]} 25. Ne2 {[%clk 0:00:26.1]} 25... R8f7 {[%clk 0:01:15.4]} 26. Nd4
{[%clk 0:00:25.7]} 26... Ne5+ {[%clk 0:01:13.4]} 27. Kc3 {[%clk 0:00:25.7]}
27... c5 {[%clk 0:01:10.6]} 28. Nb3 {[%clk 0:00:22.6]} 28... d4+ {[%clk
0:01:09.9]} 29. Kd2 {[%clk 0:00:22.7]} 29... Rf2+ {[%clk 0:01:09.4]} 0-1

[Event "*** SCC Grand Prix: Titled Tuesday Blitz"]
[Site "Chess.com"]
[Date "2020.08.25"]
[Round "7"]
[White "maxip32"]
[Black "labdalla"]
[Result "0-1"]
[WhiteElo "2413"]
[BlackElo "2265"]
[TimeControl "180+1"]
[EndTime "11:18:41 PDT"]
[Termination "labdalla won by resignation"]

1. e4 {[%clk 0:03:00.9]} 1... c5 {[%clk 0:02:59.7]} 2. Nf3 {[%clk 0:03:00.9]}
2... e6 {[%clk 0:03:00.3]} 3. d3 {[%clk 0:03:00.5]} 3... Nc6 {[%clk 0:03:00]} 4.
g3 {[%clk 0:03:00.3]} 4... d5 {[%clk 0:02:58.6]} 5. Nbd2 {[%clk 0:03:00.1]} 5...
Nf6 {[%clk 0:02:59.2]} 6. Bg2 {[%clk 0:02:59.5]} 6... Be7 {[%clk 0:02:59.7]} 7.
O-O {[%clk 0:02:59.4]} 7... b5 {[%clk 0:02:56.5]} 8. Re1 {[%clk 0:02:57.5]} 8...
Bb7 {[%clk 0:02:55.3]} 9. a4 {[%clk 0:02:35.1]} 9... b4 {[%clk 0:02:52.9]} 10.
exd5 {[%clk 0:02:33.1]} 10... exd5 {[%clk 0:02:47.2]} 11. Nf1 {[%clk 0:02:31.6]}
11... O-O {[%clk 0:02:46.8]} 12. h4 {[%clk 0:02:31]} 12... Re8 {[%clk
0:02:44.3]} 13. Bf4 {[%clk 0:02:30.3]} 13... h6 {[%clk 0:02:38.7]} 14. Ne5
{[%clk 0:02:16.7]} 14... Nxe5 {[%clk 0:02:37.9]} 15. Bxe5 {[%clk 0:02:16.7]}
15... Bd6 {[%clk 0:02:33.4]} 16. Bxd6 {[%clk 0:01:43.8]} 16... Qxd6 {[%clk
0:02:34.3]} 17. Qd2 {[%clk 0:01:40]} 17... a5 {[%clk 0:02:19.1]} 18. Rxe8+
{[%clk 0:01:33.3]} 18... Rxe8 {[%clk 0:02:18.8]} 19. Re1 {[%clk 0:01:29.2]}
19... Re7 {[%clk 0:02:14.5]} 20. Ne3 {[%clk 0:01:26.7]} 20... Bc6 {[%clk
0:02:13.9]} 21. b3 {[%clk 0:01:22.9]} 21... Bd7 {[%clk 0:02:08.6]} 22. d4 {[%clk
0:01:19.5]} 22... Ne4 {[%clk 0:01:56.1]} 23. dxc5 {[%clk 0:01:10.4]} 23... Qxc5
{[%clk 0:01:46.3]} 24. Qxd5 {[%clk 0:01:09.8]} 24... Qc3 {[%clk 0:01:34.4]} 25.
Rd1 {[%clk 0:00:27.4]} 25... Nxf2 {[%clk 0:01:25.7]} 26. Kxf2 {[%clk 0:00:21.7]}
26... Qxe3+ {[%clk 0:01:24.7]} 27. Kf1 {[%clk 0:00:21.9]} 27... Bg4 {[%clk
0:01:04.5]} 28. Qd8+ {[%clk 0:00:17.1]} 28... Re8 {[%clk 0:01:02.3]} 0-1

[Event "*** SCC Grand Prix: Titled Tuesday Blitz"]
[Site "Chess.com"]
[Date "2020.08.25"]
[Round "7"]
[White "Hikaru"]
[Black "ChessWarrior7197"]
[Result "1-0"]
[WhiteElo "3219"]
[BlackElo "2929"]
[TimeControl "180+1"]
[EndTime "11:18:46 PDT"]
[Termination "Hikaru won by resignation"]

1. Nf3 {[%clk 0:03:00.9]} 1... d5 {[%clk 0:02:59.1]} 2. e3 {[%clk 0:03:00.3]}
2... Nf6 {[%clk 0:02:58.7]} 3. c4 {[%clk 0:03:00.4]} 3... c6 {[%clk 0:02:58.2]}
4. d4 {[%clk 0:03:00.5]} 4... e6 {[%clk 0:02:58.2]} 5. Nbd2 {[%clk 0:03:00.1]}
5... Nbd7 {[%clk 0:02:58.3]} 6. Bd3 {[%clk 0:03:00.4]} 6... Bd6 {[%clk
0:02:58.2]} 7. e4 {[%clk 0:03:00.3]} 7... dxe4 {[%clk 0:02:58.5]} 8. Nxe4 {[%clk
0:03:01.2]} 8... Nxe4 {[%clk 0:02:59.4]} 9. Bxe4 {[%clk 0:03:02.1]} 9... Nf6
{[%clk 0:03:00.2]} 10. Bc2 {[%clk 0:03:01.6]} 10... O-O {[%clk 0:03:00.3]} 11.
O-O {[%clk 0:03:01]} 11... b6 {[%clk 0:03:00.6]} 12. Bg5 {[%clk 0:02:52]} 12...
h6 {[%clk 0:02:55.1]} 13. Bh4 {[%clk 0:02:51.9]} 13... g5 {[%clk 0:02:36]} 14.
Bg3 {[%clk 0:02:48.8]} 14... Bxg3 {[%clk 0:02:32.2]} 15. fxg3 {[%clk 0:02:47.5]}
15... c5 {[%clk 0:02:29.1]} 16. Qe2 {[%clk 0:02:20.4]} 16... Bb7 {[%clk
0:02:26.2]} 17. Rad1 {[%clk 0:02:20.1]} 17... Qe7 {[%clk 0:02:07.9]} 18. d5
{[%clk 0:02:17.7]} 18... Rad8 {[%clk 0:02:05.8]} 19. h4 {[%clk 0:01:44]} 19...
g4 {[%clk 0:01:40.5]} 20. Nh2 {[%clk 0:01:40.3]} 20... h5 {[%clk 0:01:04.1]} 21.
Qe5 {[%clk 0:01:39.4]} 21... Ne8 {[%clk 0:00:56.7]} 22. Qxh5 {[%clk 0:01:25.1]}
22... f5 {[%clk 0:00:56.8]} 23. Nxg4 {[%clk 0:01:25.3]} 23... Ng7 {[%clk
0:00:52.6]} 24. Qg6 {[%clk 0:01:17.3]} 24... exd5 {[%clk 0:00:44.9]} 25. Nh6+
{[%clk 0:01:14.1]} 25... Kh8 {[%clk 0:00:44.3]} 26. Nxf5 {[%clk 0:01:14.5]}
26... Nxf5 {[%clk 0:00:32.1]} 27. Bxf5 {[%clk 0:01:15.4]} 27... Rd6 {[%clk
0:00:27.3]} 28. Qh5+ {[%clk 0:01:14.4]} 28... Kg8 {[%clk 0:00:24.9]} 29. Rde1
{[%clk 0:01:11.4]} 29... Qg7 {[%clk 0:00:06.4]} 30. Bh7+ {[%clk 0:01:08.4]}
30... Kh8 {[%clk 0:00:06]} 31. Rxf8+ {[%clk 0:01:09]} 31... Qxf8 {[%clk
0:00:06.4]} 32. Re8 {[%clk 0:01:08.4]} 1-0

[Event "*** SCC Grand Prix: Titled Tuesday Blitz"]
[Site "Chess.com"]
[Date "2020.08.25"]
[Round "7"]
[White "Maksimus1998"]
[Black "viniciusrego"]
[Result "1-0"]
[WhiteElo "2603"]
[BlackElo "2259"]
[TimeControl "180+1"]
[EndTime "11:18:46 PDT"]
[Termination "Maksimus1998 won on time"]

1. e4 {[%clk 0:03:00.9]} 1... c5 {[%clk 0:02:59.8]} 2. Nf3 {[%clk 0:02:56.8]}
2... d6 {[%clk 0:02:59.9]} 3. d4 {[%clk 0:02:56.7]} 3... cxd4 {[%clk 0:03:00.8]}
4. Nxd4 {[%clk 0:02:57.4]} 4... Nf6 {[%clk 0:03:01.4]} 5. Nc3 {[%clk 0:02:58.1]}
5... g6 {[%clk 0:03:02.1]} 6. g3 {[%clk 0:02:57.3]} 6... Bg7 {[%clk 0:03:02.2]}
7. Bg2 {[%clk 0:02:57.9]} 7... O-O {[%clk 0:03:02.8]} 8. O-O {[%clk 0:02:57.7]}
8... Nc6 {[%clk 0:03:03.4]} 9. Nde2 {[%clk 0:02:57.8]} 9... Be6 {[%clk
0:03:02.9]} 10. h3 {[%clk 0:02:56.7]} 10... Qc8 {[%clk 0:03:02.8]} 11. Kh2
{[%clk 0:02:56]} 11... Rb8 {[%clk 0:03:02.6]} 12. b3 {[%clk 0:02:49.7]} 12... b5
{[%clk 0:02:59]} 13. Bb2 {[%clk 0:02:49.5]} 13... b4 {[%clk 0:02:49]} 14. Na4
{[%clk 0:02:41]} 14... Bd7 {[%clk 0:02:26.4]} 15. a3 {[%clk 0:02:34.6]} 15... a5
{[%clk 0:02:15.2]} 16. axb4 {[%clk 0:02:32]} 16... axb4 {[%clk 0:02:16.1]} 17.
Nf4 {[%clk 0:02:32.3]} 17... e5 {[%clk 0:01:54.3]} 18. Nd5 {[%clk 0:02:25.4]}
18... Nxd5 {[%clk 0:01:49.7]} 19. Qxd5 {[%clk 0:02:26.3]} 19... Rd8 {[%clk
0:01:34.9]} 20. f4 {[%clk 0:02:11.7]} 20... Be6 {[%clk 0:01:25.6]} 21. Qd2
{[%clk 0:02:10.9]} 21... exf4 {[%clk 0:01:26]} 22. gxf4 {[%clk 0:02:08.4]} 22...
Bxb2 {[%clk 0:01:07.3]} 23. Nxb2 {[%clk 0:02:09.3]} 23... Qc7 {[%clk 0:00:51.9]}
24. Kh1 {[%clk 0:02:06.7]} 24... Bc8 {[%clk 0:00:26.8]} 25. f5 {[%clk
0:02:06.5]} 25... Ne5 {[%clk 0:00:17.8]} 26. f6 {[%clk 0:01:59.9]} 26... Kh8
{[%clk 0:00:18]} 27. Nd3 {[%clk 0:01:54.6]} 27... Qc3 {[%clk 0:00:15.5]} 28.
Qxc3 {[%clk 0:01:42.1]} 28... bxc3 {[%clk 0:00:16.4]} 29. Nf4 {[%clk 0:01:42.2]}
29... Bb7 {[%clk 0:00:12]} 30. Rfd1 {[%clk 0:01:41]} 30... Ra8 {[%clk
0:00:10.9]} 31. Ne2 {[%clk 0:01:40.2]} 31... Rxa1 {[%clk 0:00:08.8]} 32. Rxa1
{[%clk 0:01:41.1]} 32... d5 {[%clk 0:00:08.9]} 33. Rd1 {[%clk 0:01:36.3]} 33...
Ba6 {[%clk 0:00:06.3]} 34. Nxc3 {[%clk 0:01:27]} 34... d4 {[%clk 0:00:04.6]} 35.
Nd5 {[%clk 0:01:24.8]} 35... d3 {[%clk 0:00:02.5]} 36. c4 {[%clk 0:01:21.4]} 1-0